[Event "*** MasterClass Titled Tuesday Blitz"]
[Site "Chess.com"]
[Date "2017.11.07"]
[Round "10"]
[White "jncool68"]
[Black "Sanan_Sjugirov"]
[Result "0-1"]
[WhiteElo "2492"]
[BlackElo "2672"]
[TimeControl "180+2"]
[EndTime "16:12:11 PST"]
[Termination "Sanan_Sjugirov won by resignation"]

1. e4 {[%clk 0:03:00.4]} 1... c5 {[%clk 0:03:00.6]} 2. Nf3 {[%clk 0:03:00.6]}
2... e6 {[%clk 0:03:01.4]} 3. d4 {[%clk 0:03:01.2]} 3... cxd4 {[%clk 0:03:02.9]}
4. Nxd4 {[%clk 0:03:03.1]} 4... Nc6 {[%clk 0:03:04.2]} 5. Nc3 {[%clk 0:03:03.9]}
5... a6 {[%clk 0:03:05.6]} 6. Be2 {[%clk 0:03:03.5]} 6... Qc7 {[%clk 0:03:05.4]}
7. O-O {[%clk 0:03:04.1]} 7... Nf6 {[%clk 0:03:06.6]} 8. Be3 {[%clk 0:03:04.8]}
8... Be7 {[%clk 0:03:06.3]} 9. f4 {[%clk 0:03:02.8]} 9... d6 {[%clk 0:03:07.4]}
10. Kh1 {[%clk 0:03:03.3]} 10... O-O {[%clk 0:03:06.8]} 11. a4 {[%clk
0:03:03.9]} 11... Nxd4 {[%clk 0:03:05.7]} 12. Qxd4 {[%clk 0:03:00.6]} 12... Bd7
{[%clk 0:03:06.9]} 13. e5 {[%clk 0:02:47.8]} 13... Ne8 {[%clk 0:03:07.6]} 14.
Rad1 {[%clk 0:02:47.2]} 14... Bc6 {[%clk 0:03:06.4]} 15. Ne4 {[%clk 0:02:45.8]}
15... dxe5 {[%clk 0:02:57.9]} 16. fxe5 {[%clk 0:02:34.5]} 16... Rd8 {[%clk
0:02:58.5]} 17. Nd6 {[%clk 0:02:35.4]} 17... Nxd6 {[%clk 0:02:57.8]} 18. exd6
{[%clk 0:02:36.3]} 18... Rxd6 {[%clk 0:02:46.3]} 19. Qh4 {[%clk 0:02:36.8]} 0-1

[Event "*** MasterClass Titled Tuesday Blitz"]
[Site "Chess.com"]
[Date "2017.11.07"]
[Round "10"]
[White "Tobi-Wan-Kenobi"]
[Black "wonderfultime"]
[Result "0-1"]
[WhiteElo "2519"]
[BlackElo "2769"]
[TimeControl "180+2"]
[EndTime "16:12:52 PST"]
[Termination "wonderfultime won by resignation"]

1. d4 {[%clk 0:03:01.9]} 1... d5 {[%clk 0:02:59.9]} 2. c4 {[%clk 0:03:01.2]}
2... c6 {[%clk 0:03:00.9]} 3. Nf3 {[%clk 0:03:01.1]} 3... Nf6 {[%clk 0:03:02.1]}
4. Nc3 {[%clk 0:03:02.5]} 4... a6 {[%clk 0:03:02]} 5. a4 {[%clk 0:02:59]} 5...
e6 {[%clk 0:02:31.7]} 6. Bg5 {[%clk 0:02:57.6]} 6... Be7 {[%clk 0:02:27.4]} 7.
e3 {[%clk 0:02:56.9]} 7... O-O {[%clk 0:02:26.7]} 8. Be2 {[%clk 0:02:57.9]} 8...
a5 {[%clk 0:02:24.5]} 9. O-O {[%clk 0:02:58.2]} 9... Na6 {[%clk 0:02:25.6]} 10.
Qb3 {[%clk 0:02:58.6]} 10... Nb4 {[%clk 0:02:24.4]} 11. Na2 {[%clk 0:02:58.6]}
11... Nxa2 {[%clk 0:01:56]} 12. Qxa2 {[%clk 0:03:00.5]} 12... Ne4 {[%clk
0:01:55.1]} 13. Bxe7 {[%clk 0:03:00.3]} 13... Qxe7 {[%clk 0:01:57]} 14. Qa3
{[%clk 0:03:01.5]} 14... Qd8 {[%clk 0:01:24.7]} 15. Rac1 {[%clk 0:02:52.3]} 0-1

[Event "*** MasterClass Titled Tuesday Blitz"]
[Site "Chess.com"]
[Date "2017.11.07"]
[Round "10"]
[White "MartinZumsande"]
[Black "ValeriyGrinev"]
[Result "0-1"]
[WhiteElo "2424"]
[BlackElo "2437"]
[TimeControl "180+2"]
[EndTime "16:14:27 PST"]
[Termination "ValeriyGrinev won by resignation"]

1. e4 {[%clk 0:02:59.7]} 1... c5 {[%clk 0:03:00.4]} 2. c3 {[%clk 0:02:59.4]}
2... Nf6 {[%clk 0:02:59.8]} 3. e5 {[%clk 0:03:00.2]} 3... Nd5 {[%clk 0:03:00.6]}
4. d4 {[%clk 0:03:01.7]} 4... cxd4 {[%clk 0:03:01.5]} 5. cxd4 {[%clk 0:03:03.3]}
5... d6 {[%clk 0:03:03.1]} 6. Bc4 {[%clk 0:03:03.8]} 6... e6 {[%clk 0:03:03.5]}
7. Nf3 {[%clk 0:03:04.1]} 7... Nc6 {[%clk 0:03:05]} 8. O-O {[%clk 0:03:04.6]}
8... Be7 {[%clk 0:03:06.5]} 9. Re1 {[%clk 0:03:04.3]} 9... O-O {[%clk
0:03:07.9]} 10. exd6 {[%clk 0:03:05.8]} 10... Qxd6 {[%clk 0:03:08.4]} 11. Nc3
{[%clk 0:03:07.2]} 11... Rd8 {[%clk 0:03:08.1]} 12. Bb3 {[%clk 0:03:01.8]} 12...
Nf6 {[%clk 0:03:08.3]} 13. Nb5 {[%clk 0:02:57.9]} 13... Qd7 {[%clk 0:03:07.5]}
14. Bf4 {[%clk 0:02:58.7]} 14... a6 {[%clk 0:03:00.9]} 15. Nc7 {[%clk
0:02:57.1]} 15... Ra7 {[%clk 0:03:02.3]} 16. Rc1 {[%clk 0:02:32.4]} 16... b5
{[%clk 0:03:01.7]} 17. Nxe6 {[%clk 0:02:24]} 17... Re8 {[%clk 0:02:30.1]} 18.
Nc5 {[%clk 0:02:03.7]} 18... Bxc5 {[%clk 0:02:30.4]} 19. Rxe8+ {[%clk
0:02:03.2]} 19... Qxe8 {[%clk 0:02:29.5]} 20. dxc5 {[%clk 0:02:02.8]} 20... Bg4
{[%clk 0:02:30.3]} 21. h3 {[%clk 0:01:48.7]} 21... Bxf3 {[%clk 0:02:29.3]} 22.
Qxf3 {[%clk 0:01:47.8]} 22... Nd4 {[%clk 0:02:30.3]} 23. Qd3 {[%clk 0:01:12.8]}
23... Ne2+ {[%clk 0:02:29.7]} 24. Kh2 {[%clk 0:01:14.1]} 24... Nxf4 {[%clk
0:02:30.6]} 25. Qg3 {[%clk 0:01:13]} 25... Ne2 {[%clk 0:02:30.2]} 0-1

[Event "*** MasterClass Titled Tuesday Blitz"]
[Site "Chess.com"]
[Date "2017.11.07"]
[Round "10"]
[White "TheMagician"]
[Black "FearNoEvil12"]
[Result "0-1"]
[WhiteElo "2227"]
[BlackElo "2032"]
[TimeControl "180+2"]
[EndTime "16:14:37 PST"]
[Termination "FearNoEvil12 won by resignation"]

1. e4 {[%clk 0:03:01.9]} 1... a6 {[%clk 0:03:00.6]} 2. d4 {[%clk 0:03:02.2]}
2... b5 {[%clk 0:03:02.1]} 3. Bd3 {[%clk 0:03:01.6]} 3... Bb7 {[%clk 0:03:03.5]}
4. c3 {[%clk 0:03:02.8]} 4... e6 {[%clk 0:03:04.9]} 5. Qe2 {[%clk 0:03:03]} 5...
Nf6 {[%clk 0:03:06.4]} 6. Nf3 {[%clk 0:03:03.8]} 6... d6 {[%clk 0:03:07.8]} 7.
O-O {[%clk 0:03:04.4]} 7... Nbd7 {[%clk 0:03:09.3]} 8. Bg5 {[%clk 0:03:03.1]}
8... h6 {[%clk 0:03:09.1]} 9. Bh4 {[%clk 0:03:02.5]} 9... g5 {[%clk 0:03:09.9]}
10. Bg3 {[%clk 0:03:03.5]} 10... Rg8 {[%clk 0:03:10.8]} 11. Nbd2 {[%clk
0:02:56.1]} 11... h5 {[%clk 0:03:10.4]} 12. h3 {[%clk 0:02:53.1]} 12... g4
{[%clk 0:03:11]} 13. hxg4 {[%clk 0:02:52.9]} 13... hxg4 {[%clk 0:03:12.5]} 14.
Nh2 {[%clk 0:02:51.4]} 14... Bh6 {[%clk 0:03:11]} 15. Rfe1 {[%clk 0:02:49.7]}
15... Nh5 {[%clk 0:03:09.1]} 16. Ndf1 {[%clk 0:02:50.1]} 16... Ndf6 {[%clk
0:03:06.2]} 17. e5 {[%clk 0:02:49.2]} 17... Nd5 {[%clk 0:03:06.6]} 18. Nxg4
{[%clk 0:02:43.1]} 18... Nhf4 {[%clk 0:03:05.2]} 19. Nxh6 {[%clk 0:02:27.8]}
19... Nxe2+ {[%clk 0:03:03.8]} 20. Bxe2 {[%clk 0:02:26]} 20... Rh8 {[%clk
0:03:03.6]} 21. Ng4 {[%clk 0:02:25.4]} 21... Qg5 {[%clk 0:03:03.3]} 22. Nfh2
{[%clk 0:02:21.5]} 22... O-O-O {[%clk 0:03:00]} 23. Bf3 {[%clk 0:02:22.3]} 23...
f5 {[%clk 0:02:55.2]} 24. exf6 {[%clk 0:02:21]} 24... Nxf6 {[%clk 0:02:55.4]}
25. Bxb7+ {[%clk 0:02:19.4]} 25... Kxb7 {[%clk 0:02:55.6]} 26. Nxf6 {[%clk
0:02:18.2]} 26... Qxf6 {[%clk 0:02:56.9]} 27. Re2 {[%clk 0:02:13.5]} 27... Rdg8
{[%clk 0:02:45]} 28. Rae1 {[%clk 0:02:13.1]} 28... e5 {[%clk 0:02:42.4]} 29.
dxe5 {[%clk 0:02:13.5]} 29... Qh6 {[%clk 0:02:43.8]} 30. exd6 {[%clk 0:01:52.5]}
30... Rxg3 {[%clk 0:02:43]} 31. fxg3 {[%clk 0:01:52.6]} 31... Qxh2+ {[%clk
0:02:43]} 32. Kf2 {[%clk 0:01:53.9]} 32... Rf8+ {[%clk 0:02:43]} 33. Ke3 {[%clk
0:01:55.4]} 33... Qxg3+ {[%clk 0:02:43.6]} 34. Kd2 {[%clk 0:01:56.7]} 34... cxd6
{[%clk 0:02:43.5]} 35. a3 {[%clk 0:01:50.8]} 35... Kc6 {[%clk 0:02:44]} 36. Rd1
{[%clk 0:01:48]} 36... Rf2 {[%clk 0:02:43.6]} 37. Re1 {[%clk 0:01:49.1]} 37...
Rxe2+ {[%clk 0:02:44.1]} 38. Rxe2 {[%clk 0:01:50.5]} 38... Qf4+ {[%clk
0:02:44.8]} 39. Kc2 {[%clk 0:01:51.5]} 39... Kc5 {[%clk 0:02:45]} 40. Rd2 {[%clk
0:01:52.1]} 40... d5 {[%clk 0:02:45.6]} 41. b4+ {[%clk 0:01:49.5]} 41... Kc6
{[%clk 0:02:42.6]} 42. Kb2 {[%clk 0:01:49.5]} 42... Qxd2+ {[%clk 0:02:41.2]} 43.
Kb3 {[%clk 0:01:49.9]} 0-1

[Event "*** MasterClass Titled Tuesday Blitz"]
[Site "Chess.com"]
[Date "2017.11.07"]
[Round "10"]
[White "Rhinos1"]
[Black "rpragchess"]
[Result "0-1"]
[WhiteElo "2055"]
[BlackElo "2305"]
[TimeControl "180+2"]
[EndTime "16:16:03 PST"]
[Termination "rpragchess won by checkmate"]

1. e4 {[%clk 0:03:01.9]} 1... c5 {[%clk 0:03:00.8]} 2. d4 {[%clk 0:03:01.6]}
2... cxd4 {[%clk 0:03:00.8]} 3. c3 {[%clk 0:03:01.8]} 3... Nf6 {[%clk
0:02:59.4]} 4. Bd3 {[%clk 0:03:00.3]} 4... dxc3 {[%clk 0:02:53.8]} 5. Nxc3
{[%clk 0:03:00]} 5... d6 {[%clk 0:02:53.7]} 6. Nf3 {[%clk 0:02:59.4]} 6... Nc6
{[%clk 0:02:54.6]} 7. h3 {[%clk 0:02:59.1]} 7... g6 {[%clk 0:02:55.6]} 8. O-O
{[%clk 0:03:00.1]} 8... Bg7 {[%clk 0:02:56.9]} 9. Qe2 {[%clk 0:03:01.1]} 9...
O-O {[%clk 0:02:58]} 10. Rd1 {[%clk 0:03:02.5]} 10... Nd7 {[%clk 0:02:59]} 11.
Bg5 {[%clk 0:02:58.9]} 11... h6 {[%clk 0:02:58.6]} 12. Bf4 {[%clk 0:02:59.3]}
12... Nde5 {[%clk 0:02:54.4]} 13. Bc2 {[%clk 0:02:51.7]} 13... Be6 {[%clk
0:02:48.2]} 14. Rac1 {[%clk 0:02:45.4]} 14... Rc8 {[%clk 0:02:48.5]} 15. b3
{[%clk 0:02:43.6]} 15... Nxf3+ {[%clk 0:02:48.4]} 16. Qxf3 {[%clk 0:02:38.6]}
16... Nd4 {[%clk 0:02:49]} 17. Rxd4 {[%clk 0:02:31.9]} 17... Bxd4 {[%clk
0:02:49.4]} 18. Nb5 {[%clk 0:02:20.6]} 18... Bb2 {[%clk 0:02:46.4]} 19. Rd1
{[%clk 0:01:38]} 19... Rxc2 {[%clk 0:02:45.7]} 20. Bxh6 {[%clk 0:01:39.5]} 20...
Bg7 {[%clk 0:02:44.5]} 21. Bxg7 {[%clk 0:01:35.4]} 21... Kxg7 {[%clk 0:02:46.4]}
22. Nd4 {[%clk 0:01:34.4]} 22... Rc8 {[%clk 0:02:47.8]} 23. Qe3 {[%clk
0:01:21.5]} 23... Qb6 {[%clk 0:02:43.9]} 24. Qg5 {[%clk 0:01:10.5]} 24... Qc5
{[%clk 0:02:41.6]} 25. Qxe7 {[%clk 0:01:10.8]} 25... Qe5 {[%clk 0:02:36.8]} 26.
f4 {[%clk 0:01:02.1]} 26... Qf6 {[%clk 0:02:33.8]} 27. Qxd6 {[%clk 0:01:02.6]}
27... Rfd8 {[%clk 0:02:32.7]} 28. Nxe6+ {[%clk 0:00:52.4]} 28... Qxe6 {[%clk
0:02:33.4]} 29. Qxd8 {[%clk 0:00:47.9]} 29... Rxd8 {[%clk 0:02:35.3]} 30. Rxd8
{[%clk 0:00:49]} 30... Qb6+ {[%clk 0:02:36.4]} 31. Kh2 {[%clk 0:00:48.6]} 31...
Qxd8 {[%clk 0:02:36.1]} 32. Kg3 {[%clk 0:00:50.5]} 32... Qd2 {[%clk 0:02:37.6]}
33. Kg4 {[%clk 0:00:50.9]} 33... Qxa2 {[%clk 0:02:39.5]} 34. g3 {[%clk
0:00:52.8]} 34... Qxb3 {[%clk 0:02:41.4]} 35. Kg5 {[%clk 0:00:54.5]} 35... Qd1
{[%clk 0:02:42.4]} 36. f5 {[%clk 0:00:56.4]} 36... Qh5+ {[%clk 0:02:41.6]} 37.
Kf4 {[%clk 0:00:57.1]} 37... Qxh3 {[%clk 0:02:42.6]} 38. Ke5 {[%clk 0:00:59]}
38... Qxg3+ {[%clk 0:02:43.1]} 39. Kd5 {[%clk 0:00:59.1]} 39... gxf5 {[%clk
0:02:44.9]} 40. exf5 {[%clk 0:01:00]} 40... Kf6 {[%clk 0:02:46.5]} 41. Kc5
{[%clk 0:00:59.7]} 41... Kxf5 {[%clk 0:02:47.8]} 42. Kd4 {[%clk 0:00:59.8]}
42... Ke6 {[%clk 0:02:49.4]} 43. Kc4 {[%clk 0:01:01.4]} 43... f5 {[%clk
0:02:51.3]} 44. Kd4 {[%clk 0:01:03.1]} 44... f4 {[%clk 0:02:53.2]} 45. Ke4
{[%clk 0:01:04.7]} 45... f3 {[%clk 0:02:54.8]} 46. Ke3 {[%clk 0:01:06.6]} 46...
f2+ {[%clk 0:02:56.4]} 47. Ke2 {[%clk 0:01:08.5]} 47... a5 {[%clk 0:02:56.9]}
48. Kf1 {[%clk 0:01:09.4]} 48... a4 {[%clk 0:02:58.5]} 49. Ke2 {[%clk
0:01:11.3]} 49... a3 {[%clk 0:03:00.1]} 50. Kf1 {[%clk 0:01:13.2]} 50... a2
{[%clk 0:03:01.8]} 51. Ke2 {[%clk 0:01:15.1]} 51... a1=Q {[%clk 0:03:03.5]} 52.
Kd2 {[%clk 0:01:17]} 52... b5 {[%clk 0:03:03.7]} 53. Ke2 {[%clk 0:01:18.9]}
53... b4 {[%clk 0:03:05]} 54. Kd2 {[%clk 0:01:20.8]} 54... b3 {[%clk 0:03:06.5]}
55. Ke2 {[%clk 0:01:21.4]} 55... b2 {[%clk 0:03:07.9]} 56. Kd2 {[%clk
0:01:21.8]} 56... b1=Q {[%clk 0:03:09.3]} 57. Ke2 {[%clk 0:01:23]} 57... f1=Q+
{[%clk 0:03:10.8]} 58. Kd2 {[%clk 0:01:24]} 58... Qac3# {[%clk 0:03:12.5]} 0-1

[Event "*** MasterClass Titled Tuesday Blitz"]
[Site "Chess.com"]
[Date "2017.11.07"]
[Round "10"]
[White "nubair1198"]
[Black "krzyzan94"]
[Result "1-0"]
[WhiteElo "2568"]
[BlackElo "2583"]
[TimeControl "180+2"]
[EndTime "16:16:11 PST"]
[Termination "nubair1198 won by resignation"]

1. c4 {[%clk 0:03:01.9]} 1... b6 {[%clk 0:03:01.9]} 2. d4 {[%clk 0:03:01.8]}
2... Bb7 {[%clk 0:03:03.8]} 3. Nc3 {[%clk 0:03:02.1]} 3... g6 {[%clk 0:03:05.3]}
4. e4 {[%clk 0:03:02.5]} 4... Bg7 {[%clk 0:03:07.2]} 5. Nf3 {[%clk 0:03:03.3]}
5... d6 {[%clk 0:03:06.4]} 6. Be2 {[%clk 0:03:03.3]} 6... Nd7 {[%clk 0:03:06.3]}
7. O-O {[%clk 0:03:04.7]} 7... e6 {[%clk 0:03:06.6]} 8. Qc2 {[%clk 0:03:05.3]}
8... Ne7 {[%clk 0:03:07.6]} 9. Re1 {[%clk 0:03:06]} 9... h6 {[%clk 0:03:09]} 10.
Be3 {[%clk 0:03:06.2]} 10... g5 {[%clk 0:03:10.5]} 11. Rad1 {[%clk 0:03:07.2]}
11... Ng6 {[%clk 0:03:11.1]} 12. Bf1 {[%clk 0:03:07.1]} 12... O-O {[%clk
0:03:11.1]} 13. h3 {[%clk 0:03:04.3]} 13... f5 {[%clk 0:03:11.5]} 14. exf5
{[%clk 0:03:03.2]} 14... exf5 {[%clk 0:03:13.4]} 15. d5 {[%clk 0:03:04.5]} 15...
Nde5 {[%clk 0:03:13.8]} 16. Nxe5 {[%clk 0:03:04.4]} 16... dxe5 {[%clk
0:03:15.4]} 17. c5 {[%clk 0:03:04.2]} 17... bxc5 {[%clk 0:02:55]} 18. Bxc5
{[%clk 0:03:04.2]} 18... Rf6 {[%clk 0:02:56.2]} 19. Qb3 {[%clk 0:03:01.2]} 19...
Bc8 {[%clk 0:02:06.5]} 20. d6+ {[%clk 0:03:00]} 20... Kh7 {[%clk 0:02:03.3]} 21.
d7 {[%clk 0:02:16.2]} 21... Ba6 {[%clk 0:01:27.7]} 22. Bxa6 {[%clk 0:02:06.2]}
22... Rxa6 {[%clk 0:01:29.6]} 23. Qb7 {[%clk 0:02:07.7]} 23... Rf6 {[%clk
0:01:09.1]} 24. Qxa8 {[%clk 0:02:08.4]} 24... Qxa8 {[%clk 0:01:11]} 25. d8=Q
{[%clk 0:02:09.8]} 25... Qc6 {[%clk 0:01:12.6]} 26. Qd5 {[%clk 0:02:02.5]} 26...
Qe8 {[%clk 0:01:12.3]} 27. Qd7 {[%clk 0:02:02.2]} 27... Qa8 {[%clk 0:01:12.1]}
28. Nd5 {[%clk 0:02:03.1]} 28... Rc6 {[%clk 0:01:07.5]} 29. b4 {[%clk
0:02:01.3]} 29... f4 {[%clk 0:01:02.4]} 30. Nxc7 {[%clk 0:02:01.6]} 30... Rxc7
{[%clk 0:00:59.4]} 31. Qxc7 {[%clk 0:02:02.6]} 31... Nh4 {[%clk 0:01:01.3]} 32.
f3 {[%clk 0:01:57.9]} 32... Nxf3+ {[%clk 0:01:01.5]} 33. gxf3 {[%clk 0:01:53.6]}
33... Qxf3 {[%clk 0:01:03.4]} 34. Bf2 {[%clk 0:01:52.9]} 34... Qxh3 {[%clk
0:01:02.1]} 35. Qd7 {[%clk 0:01:52.8]} 35... Qxd7 {[%clk 0:00:48.8]} 36. Rxd7
{[%clk 0:01:53.3]} 36... Kg6 {[%clk 0:00:50.7]} 37. Rxg7+ {[%clk 0:01:53.3]} 1-0

[Event "*** MasterClass Titled Tuesday Blitz"]
[Site "Chess.com"]
[Date "2017.11.07"]
[Round "10"]
[White "Hanging_pointer"]
[Black "AbdAlAgathos"]
[Result "1-0"]
[WhiteElo "2342"]
[BlackElo "2215"]
[TimeControl "180+2"]
[EndTime "16:16:20 PST"]
[Termination "Hanging_pointer won by resignation"]

1. e4 {[%clk 0:02:56.2]} 1... e5 {[%clk 0:03:00]} 2. Nf3 {[%clk 0:02:56.9]} 2...
Nc6 {[%clk 0:03:00.8]} 3. Bc4 {[%clk 0:02:57.8]} 3... Nf6 {[%clk 0:03:01.6]} 4.
d3 {[%clk 0:02:58.1]} 4... Bc5 {[%clk 0:03:02.9]} 5. O-O {[%clk 0:02:57]} 5...
d6 {[%clk 0:03:04.3]} 6. c3 {[%clk 0:02:51.7]} 6... a6 {[%clk 0:03:03.4]} 7. b4
{[%clk 0:02:52.1]} 7... Ba7 {[%clk 0:03:03.7]} 8. Qb3 {[%clk 0:02:52.5]} 8...
O-O {[%clk 0:03:00.3]} 9. Bg5 {[%clk 0:02:52.9]} 9... h6 {[%clk 0:02:58.2]} 10.
Bh4 {[%clk 0:02:53.6]} 10... g5 {[%clk 0:02:40.2]} 11. Nxg5 {[%clk 0:02:54]}
11... hxg5 {[%clk 0:02:42.1]} 12. Bxg5 {[%clk 0:02:55]} 12... Qe7 {[%clk
0:02:43.7]} 13. Kh1 {[%clk 0:02:52.3]} 13... Nd8 {[%clk 0:02:36.2]} 14. f4
{[%clk 0:02:34.5]} 14... Ne6 {[%clk 0:02:35.4]} 15. fxe5 {[%clk 0:02:21.3]}
15... Nxg5 {[%clk 0:02:34.7]} 16. exf6 {[%clk 0:02:22.5]} 16... Qe5 {[%clk
0:02:30.9]} 17. Nd2 {[%clk 0:02:13.3]} 17... Be6 {[%clk 0:02:16.9]} 18. d4
{[%clk 0:02:08.9]} 18... Bxc4 {[%clk 0:01:57.1]} 19. Qxc4 {[%clk 0:01:55.1]}
19... Qb5 {[%clk 0:01:51.5]} 20. Qb3 {[%clk 0:01:48.8]} 20... Qd3 {[%clk
0:01:37.2]} 21. Qd5 {[%clk 0:01:38.6]} 21... Qxd2 {[%clk 0:01:13.7]} 22. Rad1
{[%clk 0:01:11.5]} 22... Qe3 {[%clk 0:01:08.5]} 23. Rde1 {[%clk 0:01:12.4]}
23... Qd2 {[%clk 0:00:40]} 24. Re2 {[%clk 0:01:07.9]} 1-0

[Event "*** MasterClass Titled Tuesday Blitz"]
[Site "Chess.com"]
[Date "2017.11.07"]
[Round "10"]
[White "Shivagami"]
[Black "MFBerna"]
[Result "1-0"]
[WhiteElo "2085"]
[BlackElo "2301"]
[TimeControl "180+2"]
[EndTime "16:16:58 PST"]
[Termination "Shivagami won by resignation"]

1. d4 {[%clk 0:03:01.9]} 1... d5 {[%clk 0:03:00.7]} 2. Bf4 {[%clk 0:03:01.6]}
2... c6 {[%clk 0:03:01.2]} 3. e3 {[%clk 0:03:02.1]} 3... Bf5 {[%clk 0:03:02.1]}
4. c4 {[%clk 0:03:01.8]} 4... e6 {[%clk 0:03:03]} 5. Nc3 {[%clk 0:03:01.5]} 5...
Nd7 {[%clk 0:03:02.7]} 6. Qb3 {[%clk 0:02:59.1]} 6... Qb6 {[%clk 0:03:02.9]} 7.
c5 {[%clk 0:02:59.9]} 7... Qxb3 {[%clk 0:03:03.6]} 8. axb3 {[%clk 0:03:01.6]}
8... a6 {[%clk 0:03:05.1]} 9. b4 {[%clk 0:02:59.3]} 9... Rc8 {[%clk 0:03:06]}
10. Nf3 {[%clk 0:02:59.9]} 10... Ngf6 {[%clk 0:03:04.5]} 11. h3 {[%clk
0:02:59.8]} 11... h6 {[%clk 0:03:05.4]} 12. Be2 {[%clk 0:02:59.3]} 12... Be7
{[%clk 0:03:06.5]} 13. O-O {[%clk 0:02:59.3]} 13... O-O {[%clk 0:03:07.7]} 14.
Nd2 {[%clk 0:02:51.2]} 14... Ne8 {[%clk 0:03:07.7]} 15. e4 {[%clk 0:02:49.4]}
15... dxe4 {[%clk 0:03:08.3]} 16. Ndxe4 {[%clk 0:02:50]} 16... Nc7 {[%clk
0:03:07.7]} 17. Nd6 {[%clk 0:02:48.3]} 17... Bxd6 {[%clk 0:03:06.4]} 18. Bxd6
{[%clk 0:02:50.2]} 18... Rfe8 {[%clk 0:03:07.5]} 19. Rfe1 {[%clk 0:02:37.1]}
19... Nd5 {[%clk 0:02:55.1]} 20. Nxd5 {[%clk 0:02:33.9]} 20... exd5 {[%clk
0:02:57]} 21. g4 {[%clk 0:02:33.8]} 21... Bg6 {[%clk 0:02:56.7]} 22. Bf3 {[%clk
0:02:33.2]} 22... Bd3 {[%clk 0:02:52.2]} 23. h4 {[%clk 0:02:23.1]} 23... f6
{[%clk 0:02:49.3]} 24. g5 {[%clk 0:02:18.4]} 24... hxg5 {[%clk 0:02:49.9]} 25.
hxg5 {[%clk 0:02:19.2]} 25... fxg5 {[%clk 0:02:51.3]} 26. Bg4 {[%clk 0:02:20.1]}
26... Nf6 {[%clk 0:02:23]} 27. Bxc8 {[%clk 0:02:19.2]} 27... Rxc8 {[%clk
0:02:24.9]} 28. Re7 {[%clk 0:02:18.3]} 28... Ne4 {[%clk 0:02:23.2]} 29. Rxb7
{[%clk 0:02:15.4]} 29... Kh7 {[%clk 0:02:22]} 30. Be5 {[%clk 0:02:14.5]} 30...
Rg8 {[%clk 0:02:22.5]} 31. Rc7 {[%clk 0:02:11.7]} 31... Bb5 {[%clk 0:02:22.9]}
32. Re1 {[%clk 0:02:07.2]} 32... Kg6 {[%clk 0:02:21.2]} 33. f3 {[%clk
0:02:02.8]} 33... Nd2 {[%clk 0:02:20.9]} 34. Kg2 {[%clk 0:01:59.8]} 34... Nc4
{[%clk 0:02:02.9]} 35. b3 {[%clk 0:01:53.9]} 35... Nd2 {[%clk 0:02:03.7]} 36.
Re3 {[%clk 0:01:54.3]} 36... Nf1 {[%clk 0:01:46.4]} 37. Re1 {[%clk 0:01:47]}
37... Nd2 {[%clk 0:01:46.2]} 38. Bg3 {[%clk 0:01:40.1]} 38... Nxb3 {[%clk
0:01:44.5]} 39. Re6+ {[%clk 0:01:41]} 39... Kh7 {[%clk 0:01:44]} 40. Be5 {[%clk
0:01:40.7]} 40... Nd2 {[%clk 0:01:35.2]} 41. Ree7 {[%clk 0:01:39.4]} 41... Kg6
{[%clk 0:01:31.6]} 42. Bxg7 {[%clk 0:01:30.4]} 42... Nc4 {[%clk 0:01:25.8]} 43.
Re6+ {[%clk 0:01:23.9]} 1-0

[Event "*** MasterClass Titled Tuesday Blitz"]
[Site "Chess.com"]
[Date "2017.11.07"]
[Round "10"]
[White "PenguinPacks"]
[Black "GameOverBro"]
[Result "0-1"]
[WhiteElo "2191"]
[BlackElo "2334"]
[TimeControl "180+2"]
[EndTime "16:17:47 PST"]
[Termination "GameOverBro won by resignation"]

1. e4 {[%clk 0:03:01.9]} 1... d6 {[%clk 0:03:00.5]} 2. d4 {[%clk 0:03:02.8]}
2... Nf6 {[%clk 0:03:00.4]} 3. Nc3 {[%clk 0:03:03.7]} 3... e5 {[%clk 0:03:00.8]}
4. Nf3 {[%clk 0:03:04.6]} 4... Nbd7 {[%clk 0:03:01.1]} 5. Be2 {[%clk 0:03:01.9]}
5... Be7 {[%clk 0:03:01.8]} 6. O-O {[%clk 0:03:02.3]} 6... c6 {[%clk 0:03:02.8]}
7. Be3 {[%clk 0:03:02.6]} 7... h6 {[%clk 0:03:02]} 8. h3 {[%clk 0:03:03.8]} 8...
Qc7 {[%clk 0:03:01.8]} 9. d5 {[%clk 0:03:03.4]} 9... a6 {[%clk 0:03:01]} 10. a4
{[%clk 0:03:04.3]} 10... c5 {[%clk 0:03:02.1]} 11. a5 {[%clk 0:03:03.3]} 11...
Nf8 {[%clk 0:02:59.3]} 12. Nd2 {[%clk 0:03:02.5]} 12... Ng6 {[%clk 0:03:00.2]}
13. Nc4 {[%clk 0:03:02.5]} 13... O-O {[%clk 0:03:00.4]} 14. f4 {[%clk
0:02:59.5]} 14... exf4 {[%clk 0:02:57.6]} 15. Bxf4 {[%clk 0:03:01.4]} 15... Nxf4
{[%clk 0:02:58.4]} 16. Rxf4 {[%clk 0:03:03.3]} 16... Nd7 {[%clk 0:02:54.6]} 17.
Ne3 {[%clk 0:02:35.1]} 17... Bg5 {[%clk 0:02:50.1]} 18. Rf3 {[%clk 0:02:35.5]}
18... Ne5 {[%clk 0:02:51]} 19. Rg3 {[%clk 0:02:36.8]} 19... Bf4 {[%clk
0:02:46.9]} 20. Qe1 {[%clk 0:02:36.7]} 20... Qe7 {[%clk 0:02:42.4]} 21. Qf2
{[%clk 0:02:21.6]} 21... Bxg3 {[%clk 0:02:37.9]} 22. Qxg3 {[%clk 0:02:23.5]}
22... Qg5 {[%clk 0:02:38.4]} 23. Qf2 {[%clk 0:02:24.5]} 23... Bxh3 {[%clk
0:02:36.3]} 24. Rf1 {[%clk 0:02:12.7]} 24... Bg4 {[%clk 0:02:31.2]} 25. Ncd1
{[%clk 0:02:09.6]} 25... Bxe2 {[%clk 0:02:20.1]} 26. Qxe2 {[%clk 0:02:11.5]}
26... Rae8 {[%clk 0:02:14.6]} 27. Rf5 {[%clk 0:01:44.9]} 27... Qg3 {[%clk
0:02:03.9]} 28. Nf2 {[%clk 0:01:41.6]} 28... g6 {[%clk 0:01:47.2]} 29. Rf6
{[%clk 0:01:42.4]} 29... h5 {[%clk 0:01:47]} 30. Nf1 {[%clk 0:01:28.8]} 30...
Qg5 {[%clk 0:01:36.2]} 31. Rxd6 {[%clk 0:01:27.8]} 31... Ng4 {[%clk 0:01:36.2]}
32. Nxg4 {[%clk 0:01:23.9]} 32... hxg4 {[%clk 0:01:36.1]} 33. c4 {[%clk
0:01:13.1]} 33... Qe5 {[%clk 0:01:32.3]} 34. Rb6 {[%clk 0:01:13.8]} 34... Qd4+
{[%clk 0:01:32.3]} 35. Qe3 {[%clk 0:01:05.2]} 35... Rxe4 {[%clk 0:01:33]} 36.
Qxd4 {[%clk 0:01:06.2]} 36... Rxd4 {[%clk 0:01:34.5]} 37. b3 {[%clk 0:01:07.7]}
37... Rb8 {[%clk 0:01:31.6]} 38. Ne3 {[%clk 0:01:08.4]} 38... f5 {[%clk
0:01:32.7]} 39. g3 {[%clk 0:01:09]} 39... Kf7 {[%clk 0:01:28.7]} 40. Ng2 {[%clk
0:01:09.8]} 40... Rd3 {[%clk 0:01:22.4]} 41. Kf2 {[%clk 0:01:08.5]} 41... Rf3+
{[%clk 0:01:21]} 42. Ke2 {[%clk 0:01:07.6]} 42... g5 {[%clk 0:01:21.5]} 43. Ne3
{[%clk 0:01:06.7]} 43... Re8 {[%clk 0:01:21.8]} 44. Rxb7+ {[%clk 0:01:07]} 44...
Kf8 {[%clk 0:01:20.8]} 45. Rb6 {[%clk 0:00:46.5]} 45... Rexe3+ {[%clk
0:01:18.7]} 46. Kd2 {[%clk 0:00:47.7]} 46... Rxb3 {[%clk 0:01:17.8]} 47. Rxa6
{[%clk 0:00:48.3]} 47... Rb2+ {[%clk 0:01:18.8]} 48. Ke1 {[%clk 0:00:40.5]}
48... Ra3 {[%clk 0:01:18.5]} 49. Ra8+ {[%clk 0:00:34.3]} 49... Kg7 {[%clk
0:01:18.9]} 50. Ra7+ {[%clk 0:00:35.1]} 50... Kh6 {[%clk 0:01:20]} 0-1